Cogmind - Beta 13 @@@ ROGUE MODE // 2024.05.28 @ 21:55:15 Player: CONM Result: Destroyed by as-39508 with Assembled F-torch Performance ------------- Evolutions (0) 0 Regions Visited (2) 400 Robots Destroyed (10) 50 Value Destroyed (228) 228 Prototype IDs (0) 0 Alien Tech Used (0) 0 Bonus (0) 0 TOTAL SCORE: 678 Bonus ------- None Cogmind --------- Core Integrity 0/250 Matter 300/300 Energy 100/100 System Corruption 9% Temperature Cool (20) Movement Core (100) Ox1 Location -10/Mines Parts ------- > --- POWER (1) -------- (None) > --- PROPULSION (2) --- (None) > --- UTILITY (2) ------ Small Storage Unit > --- WEAPON (2) ------- (None) > --- INVENTORY (8) ---- Improved Ion Engine Improved Ion Engine Aluminum Leg Cooling System Cooling System High-capacity Battery (250) Improved Terrain Scanner Rocket Launcher Peak State ------------ > --- POWER ------------ (None) > --- PROPULSION ------- Combat Airjet Combat Airjet > --- UTILITY ---------- Small Storage Unit > --- WEAPON ----------- (None) > --- INVENTORY -------- Improved Ion Engine Improved Ion Engine Aluminum Leg Cooling System Cooling System High-capacity Battery Improved Terrain Scanner Rocket Launcher [Rating: 12] Favorites ----------- Power Improved Ion Engine Engine Improved Ion Engine Propulsion Aluminum Leg Leg Aluminum Leg Wheel Compact Wheel Hover Unit Combat Airjet Utility Small Storage Unit Device Seismic Detector Storage Small Storage Unit Weapon Small Laser Energy Gun Small Laser Special Weapon Mining Laser Build | -11 -10 -10 ------- Run | Yrd Mat Min Slots Evolved . | . . . Power . | . . . Propulsion . | . . . Utility . | . . . Weapon . | . . . Parts Attached 19 | 7 9 3 Power 2 | 1 1 . Engine 2 | 1 1 . Core . | . . . Reactor . | . . . Propulsion 8 | 2 4 2 Treads . | . . . Leg 4 | . 4 . Wheel 2 | 2 . . Hover 2 | . . 2 Flight . | . . . Utility 3 | 2 1 . Device 2 | 1 1 . Storage 1 | 1 . . Processor . | . . . Hackware . | . . . Protection . | . . . Artifact . | . . . Weapon 6 | 2 3 1 Energy Gun 4 | 2 2 . Energy Cannon . | . . . Ballistic Gun . | . . . Ballistic Cannon . | . . . Launcher . | . . . Special Weapon 2 | . 1 1 Impact Weapon . | . . . Slashing Weapon . | . . . Piercing Weapon . | . . . Special Melee Weapon . | . . . Unidentified Prototypes . | . . . Corrupted Parts 1 | . . 1 System Corruption 7 | . . 7 Parts Lost 4 | . . 4 Power 1 | . . 1 Propulsion . | . . . Utility 1 | . . 1 Weapon 2 | . . 2 Highest Loss Streak 4 | . . 4 To Critical Strikes . | . . . Average Slot Usage (%) 95 | . 98 94 Engine 13 | . 14 12 Leg 24 | . 22 25 Wheel 2 | . 5 . Hover 1 | . . 2 Device 12 | . 12 12 Storage 14 | . 14 14 Energy Gun 18 | . 25 13 Special Weapon 8 | . 2 11 Naked Turns . | . . . Heaviest Build 16 | 11 16 16 Greatest Support 26 | 26 26 24 Greatest Overweight (x) 1 | . . 1 Average Overweight (x) . | . . . Largest Inventory Capacity 8 | 8 8 8 Average Capacity 7 | 7 8 8 Most Carried 8 | 5 8 8 Average Carried 7 | 2 7 7 Final Capacity 8 | 8 8 8 Final Carried 8 | 5 8 8 Class Distribution -------------------- 100% | Mutant Dominant Class ---------------- Mutant | -10/Materials Mutant | -10/Mines Resources | -11 -10 -10 ----------- Run | Yrd Mat Min Matter Collected 391 | 201 159 31 Remotely . | . . . Salvage Created 346 | 120 224 2 Parts 19 | 10 9 . Haulers Intercepted . | . . . Recyclers Shooed . | . . . Parts Field Recycled . | . . . Retrieved Matter . | . . . Parts Self-Destructed . | . . . Prevented . | . . . Kills | -11 -10 -10 ------- Run | Yrd Mat Min Combat Hostiles Destroyed 6 | . 5 1 Melee 1 | . . 1 Guns 5 | . 5 . Classes Destroyed 5 | 2 2 1 Builder 1 | . 1 . Tunneler 3 | 3 . . Recycler 1 | 1 . . Grunt 5 | . 5 . Assembled 1 | . . 1 Best Kill Streak 2 | 2 2 1 Combat Bots Only 2 | . 2 1 Max Kills in Single Turn 1 | 1 1 1 Gunslinging . | . . . Exploded . | . . . Melee 1 | . . 1 Uniques/NPCs Destroyed . | . . . Combat | -11 -10 -10 -------- Run | Yrd Mat Min Hostile Shots Fired 113 | . 37 76 Missed 46 | . 9 37 Damage Taken 979 | . 353 626 Core 259 | . 35 224 Absorbed by Shields . | . . . Regen/Repaired (Parts) 17 | . 17 . Core Remaining (%) 100 | 100 . . Volleys Fired 41 | 12 19 10 Largest 2 | 2 2 2 Hottest 140 | 80 140 140 Shots Fired 79 | 24 37 18 Gun 70 | 24 36 10 Cannon . | . . . Launcher . | . . . Special 9 | . 1 8 Kinetic . | . . . Thermal 79 | 24 37 18 Explosive . | . . . Electromagnetic . | . . . Robot Hit Streak 13 | 12 13 . Robot Miss Streak 3 | 2 3 . Penetration Max . | . . . Secondary Targets . | . . . Shots Hit Robots 42 | 19 23 . Core Hits 22 | 5 13 4 Critical Kills . | . . . Critical Parts Destroyed . | . . . Critical Strikes 2 | . 2 . Burn 2 | . 2 . Melee Attacks . | . . . Impact . | . . . Slashing . | . . . Piercing . | . . . Sneak Attacks . | . . . Combat Hostiles . | . . . Follow-up Attacks . | . . . Damage Inflicted 531 | 214 280 37 Guns 494 | 214 280 . Cannons . | . . . Explosions . | . . . Melee . | . . . Ramming 37 | . . 37 Kinetic . | . . . Thermal 494 | 214 280 . Explosive . | . . . Electromagnetic . | . . . Impact . | . . . Slashing . | . . . Piercing . | . . . Highest Corruption 9 | . . 9 Average Corruption 7 | . . 7 Corruption Purged . | . . . Corruption Blocked . | . . . Effects 3 | . . 3 Matter Fused 1 | . . 1 Energy Discharges 1 | . . 1 Parts Rejected 1 | . . 1 Overload Shots . | . . . Overflow Damage . | . . . Projectiles . | . . . Explosions . | . . . Melee . | . . . Knockbacks . | . . . Impact . | . . . Kinetic . | . . . Secondary . | . . . Self-Inflicted Damage 7 | . . 7 Shots . | . . . Rammed 13 | . . 13 Targets Rammed 18 | . . 18 Kicked 5 | . . 5 Crushed . | . . . Highest Temperature 300 | 18 300 243 Average Temperature 95 | 6 118 107 Received Heat Transfer 576 | . 216 360 Effects 3 | . 2 1 Energy Bleed 1 | . 1 . Interference 1 | . . 1 Short Circuit 1 | . 1 . Siege Activations . | . . . Robots Corrupted . | . . . Combat Hostiles . | . . . Parts Fried . | . . . Impact Corruptions . | . . . Robots Melted . | . . . Combat Hostiles . | . . . Parts Melted 3 | . 3 . Heat Transferred 1355 | 475 880 . Parts Sabotaged . | . . . Parts Stolen . | . . . Parts Stripped . | . . . Power Chain Reactions . | . . . Alert | -11 -10 -10 ------- Run | Yrd Mat Min Peak Influence 189 | 20 189 25 Initial 25 | . 13 25 Average 27 | 8 58 13 Maximum Alert Level . | . . . Low Security (%) 100 | 100 100 100 Level 1 . | . . . Level 2 . | . . . Level 3 . | . . . Level 4 . | . . . Level 5 . | . . . High Security . | . . . Max Security . | . . . Squads Dispatched 2 | . 2 . Investigation 2 | . 2 . Extermination . | . . . Reinforcement . | . . . Assault . | . . . Garrison . | . . . Intercept . | . . . Searches Triggered . | . . . Construction Impeded . | . . . Haulers Reinforced . | . . . Active Scanning Responses . | . . . Cargo Convoy Interrupts . | . . . Stealth | -11 -10 -10 --------- Run | Yrd Mat Min Distress Signals 5 | . 4 1 Communications Jammed . | . . . Distress Signals . | . . . Times Spotted 22 | . 9 13 Peak Tracking Total 9 | . 6 9 Tactical Retreats 4 | . 2 2 Traps | -11 -10 -10 ------- Run | Yrd Mat Min Traps Triggered 1 | . 1 . Indirectly . | . . . Trap Hack Attempts . | . . . Triggered . | . . . Disarmed . | . . . Reprogrammed . | . . . Reused . | . . . Traps Extracted . | . . . Installed . | . . . Triggered . | . . . Machines | -11 -10 -10 ---------- Run | Yrd Mat Min Machines Disabled . | . . . Max in Single Turn . | . . . Machines Repaired . | . . . Machines Dismantled . | . . . Machines Sabotaged . | . . . Overloaded Fab Kills . | . . . Hacking | -11 -10 -10 --------- Run | Yrd Mat Min Machines Accessed 5 | . 5 . Terminals 3 | . 3 . Fabricators . | . . . Repair Stations 1 | . 1 . Recycling Units 1 | . 1 . Scanalyzers . | . . . Garrison Access . | . . . Total Hacks 9 | . 9 . Successful 5 | . 5 . Failed 4 | . 4 . Catastrophic 2 | . 2 . Database Lockouts . | . . . Manual 3 | . 3 . Terminals 4 | . 4 . Fabricators . | . . . Repair Stations 2 | . 2 . Recycling Units 3 | . 3 . Scanalyzers . | . . . Garrison Access . | . . . Terminal Hacks 2 | . 2 . Terminal Index 1 | . 1 . Alert Level 1 | . 1 . Fabricator Hacks . | . . . Repair Station Hacks 2 | . 2 . Scan Component 1 | . 1 . Repair 1 | . 1 . Recycling Unit Hacks 1 | . 1 . Report Inventory 1 | . 1 . Scanalyzer . | . . . Garrison Access Hacks . | . . . Unauthorized Hacks . | . . . Terminals . | . . . Fabricators . | . . . Repair Stations . | . . . Recycling Units . | . . . Scanalyzers . | . . . Garrison Access . | . . . Data Cores Recovered . | . . . Used . | . . . Hacking Detections 2 | . 2 . Full Trace Events 1 | . 1 . Feedback Events . | . . . Feedback Blocked . | . . . Robot Schematics Acquired . | . . . Robots Built . | . . . Authchips . | . . . Time . | . . . Total Robot Build Rating . | . . . Part Schematics Acquired . | . . . Parts Built . | . . . Authchips . | . . . Time . | . . . Total Part Build Rating . | . . . Parts Repaired 1 | . 1 . Time 26 | . 26 . Parts Recycled . | . . . Recycled Matter . | . . . Retrieved Matter . | . . . Retrieved Components . | . . . Parts Scanalyzed . | . . . Part Schematics Acquired . | . . . Parts Damaged . | . . . Bothacking | -11 -10 -10 ------------ Run | Yrd Mat Min Used RIF Installer . | . . . Robots Hacked . | . . . Non-combat . | . . . Combat . | . . . Robot Hacks Applied . | . . . Relay Couplers Released . | . . . Fabnet Peak Effective % . | . . . Robots Rewired . | . . . Allies Hacked . | . . . Hacks Repelled . | . . . Allies | -11 -10 -10 -------- Run | Yrd Mat Min Total Allies . | . . . Largest Group . | . . . Highest-Rated Group . | . . . Highest-Rated Ally . | . . . Total Orders . | . . . Ally Attacks . | . . . Total Damage . | . . . Kills . | . . . Allies Corrupted . | . . . Allies Melted . | . . . Intel | -11 -10 -10 ------- Run | Yrd Mat Min Robot Analysis Total . | . . . Derelict Logs Recovered 1 | . . 1 Drone Launches . | . . . Drone Recoveries . | . . . Exploration | -11 -10 -10 ------------- Run | Yrd Mat Min Turns Passed 1496 | 170 494 832 Spaces Moved 828 | 135 315 378 Core 19 | 8 . 11 Treads . | . . . Legs 518 | . 215 303 Wheels 227 | 127 100 . Hover 64 | . . 64 Flight . | . . . Fastest Speed 50 | 50 90 77 Average Speed 107 | 87 110 112 Slowest Speed 120 | 100 120 120 Overloaded Moves . | . . . Propulsion Burnouts . | . . . Robots Hopped . | . . . Cave-ins Triggered . | . . . Exploration Rate (%) 39 | 5 49 64 Regions Visited 2 Branch Regions 1 Pre-discovered Areas . | . . . Known Exits Taken . | . . . Unknown Exits Taken 2 | 1 1 . Scrap Searched 1 | . . 1 Spaces Dug 8 | . 1 7 Terrain Destroyed 8 | . 1 7 Melee . | . . . Projectile 8 | . 1 7 AOE . | . . . Terrain Rammed . | . . . Walls Destroyed . | . . . Machines Disabled . | . . . Actions | -11 -10 -10 --------- Run | Yrd Mat Min Total 1336 | 158 426 752 Wait 404 | . 66 338 Move 826 | 134 314 378 Hop . | . . . Pick Up 14 | 5 8 1 Fast Attach 10 | 7 1 2 Attach 3 | . 2 1 Detach 1 | . 1 . Swap 6 | . 6 . Drop 13 | . 9 4 Fire 41 | 12 19 10 Melee . | . . . Ram 13 | . . 13 Kick 5 | . . 5 Crush . | . . . Escape Stasis . | . . . Rewire . | . . . Trap . | . . . Miscellaneous . | . . . Route ------- -11/Scrapyard -10/Materials (discovered 2 exits: [*Mat] / [*Min]) -10/Mines History --------- Turn | Location | Event 2 | -11/Scrapyard | Met Revision 17 27 | -11/Scrapyard | Discovered new exit (range 16) 171 | -11/Scrapyard | Entered Materials 314 | -10/Materials | Build established: Mutant 491 | -10/Materials | Discovered new exit (range 14) 611 | -10/Materials | Repaired Seismic Detector 657 | -10/Materials | Discovered new exit (range 8) 665 | -10/Materials | Entered Mines 730 | -10/Mines | Received a Rocket Launcher from a helpful Derelict 753 | -10/Mines | Assembled infested the area 1413 | -10/Mines | Core integrity fell below 50% 1452 | -10/Mines | Lost 4 parts (1p1u2w) 1456 | -10/Mines | Learned Materials security intel 1479 | -10/Mines | Core integrity fell below 20% 1497 | -10/Mines | Destroyed by as-39508 with Assembled F-torch Last Messages --------------- 01445_ Laser Drill disabled. 01450_ System corrupted: Energy discharge (-21). 01456_ Acquired derelict log, extracted data. Data stored: Materials security intel. 01472_ System corrupted: Cmb. Airjet rejected. 01473_ Slammed into as-39508. 01474_ Slammed into as-59765. 01475_ Destabilizing: System corrupted (+2). 01476_ Slammed into as-59765. 01478_ Slammed into as-35415. 01479_ Searching scrap... 01479_ Found Seismic Detector. 01479_ Found Med. Storage Unit. 01479_ Found 40 Matter. 01479_ Found 27 Matter. 01479_ Slammed into as-35415. 01479_ Cmb. Airjet broken. 01479_ Destabilizing: Short circuit. 01480_ Slammed into as-35415. 01493_ Dropped Broken Cmb. Airjet. Map ----- +----------------------------------------------------+ | ??????????????????????????????????????????????? | | ??????????????????????????????????????????????? | | ??????????????????????????????????????????????? | | ??????????????????????????????????????????????? | | ??????????????????????????????????????????????? | | ??????????????????????????????????????????????? | | ??????????????????????????????????????????????? | | ??????????????????????????????????????????????? | | ??????????????????????????????????????????????? | | ??????????????????????????????????????????????? | | ????????##????#############???????????????????? | | ???????# ????# ????????????? | | ?????## ????# ## ########???????????????????? | | ?##### ????# ##%################# #??????? | | ## ????# ##=%%%%!!%%%%%%%% #?????? | | # ????# ############### ### #????? | | # ###### ##????????###a#?? #????? | | # ##??????## ## #?????? | | # % = #?????## a #?????? | | # ######% #?????# #?????? | | # ## ##?????# aa #????? | | # #?# ## ##?????##=a ## #???? | | %=""" ### ## ##??????# a ##?? #???? | | """ ## ## #??????## #????# ##???? | | "" %=#???#### ##??????###????? | | %!! #########???# @ ##??????????????? | | %%=!=%* ##??????????# ###???????????????? | | !#|%==!##???????????# ##?????????????????? | | =##%!%%#????????????## #??????????????????? | | *%##*=[%#????????????# ??????????????????? | | #|### != ??????????## ??????????????????? | | ?*#?##%!## #??????????### ?????????????????? | | ?=#??#|=#??#????????????## ?????????????????? | | #%#??# #????????????????# ????????????????? | | ??# ????????????????? ????????????????? | | ???####???????????????? #???????????????? | | ??????????????????????? #???????????????? | | ??????????????????????? #???????????????? | | #??????????????????????# ???????????????? | | ##????????????????????? ????????????????? | | ##????????????????????#??????????????????? | | ##??????????????????????????????????????? | | ? ##?????????????????????????????????????? | | ?? #?????????????????????????????????????? | | #??# ##????????????????????????????????????? | | #### ##???????????????????????????????????? | | ## ##??????????????????????????????????? | | #??????????????????????????????????? | | #??????????????????????????????????? | | ##????##????????????????????????????? | +----------------------------------------------------+ Best States ------------- Heat Dissipation 25 Energy Generation 12 Energy Capacity 265 Matter Stores 300 Matter Capacity 300 Sight Range 16 Terrain Scan Density 10 Evasion (%) 55 Item Schematics ----------------- None Robot Schematics ------------------ None Fabricated ------------ Nothing Alien Tech Used ----------------- None Achievements -------------- None Challenges ------------ None Game ------ Seed TrapSmallStabilizer Manual? 0 Play Time 00:13:32 Cumulative 24.2 hours Start 2024.05.28 @ 21:42:58 End 2024.05.28 @ 21:55:15 Sessions 1 Manual Loads 0 Difficulty Rogue Special Mode None Game No. 47 Rogue 47 Adventurer 0 Explorer 0 Win Type - Total 0 Types 0/0/0/0/0/0/0/0/0 Lore% 19 Gallery% 19 Achievement% 23 Wizard Run 0 Options --------- Layout 0 ASCII 0 Keyboard 0 Movement Arrows Keybinds 0 Fullscreen 2 Font 18/Terminus Map View 76x50 Zoom Use 0% Tactical HUD 1 Map Filters NONE Filters NONE Steam 1 RUN: 160023b2-b03b-4cb8-aba7-c5dcfee523f2